[Event "Masterklassen 2025"]
[Site "Uppsala, Sweden"]
[Date "2025.06.28"]
[Round "1.2"]
[White "Crevatin, Leo"]
[Black "Jaderberg, Bjorn"]
[Result "1/2-1/2"]
[TimeControl "90 min for 40 move + 30 min with an increment of 30 sec starting move 1"]
[WhiteTitle "FM"]
[WhiteFideId "1726307"]
[BlackFideId "1712403"]
[WhiteElo "2248"]
[BlackElo "2112"]

1. d4 {[%clk 01:30:48]} {[%emt 00:00:12]} e6 {[%clk 01:30:48]} {[%emt
00:00:12]} 2. c4 {[%clk 01:30:22]} {[%emt 00:00:56]} f5 {[%clk 01:30:57]}
{[%emt 00:00:22]} 3. Nc3 {[%clk 01:29:57]} {[%emt 00:00:54]} Nf6 {[%clk
01:31:15]} {[%emt 00:00:11]} 4. e3 {[%clk 01:30:19]} {[%emt 00:00:08]} Be7
{[%clk 01:31:15]} {[%emt 00:00:30]} 5. Bd3 {[%clk 01:30:12]} {[%emt 00:00:38]}
Nc6 {[%clk 01:28:47]} {[%emt 00:02:58]} 6. Nge2 {[%clk 01:24:55]} {[%emt
00:05:47]} O-O {[%clk 01:24:11]} {[%emt 00:05:06]} 7. a3 {[%clk 01:21:38]}
{[%emt 00:03:48]} a5 {[%clk 01:19:56]} {[%emt 00:04:44]} 8. Qc2 {[%clk
01:21:13]} {[%emt 00:00:55]} g6 {[%clk 01:19:34]} {[%emt 00:00:52]} 9. Bd2
{[%clk 01:14:37]} {[%emt 00:07:06]} e5 {[%clk 01:14:41]} {[%emt 00:05:23]} 10.
f3 {[%clk 01:13:39]} {[%emt 00:01:28]} Kg7 {[%clk 01:05:35]} {[%emt 00:09:36]}
11. O-O {[%clk 01:10:18]} {[%emt 00:03:50]} d6 {[%clk 01:04:40]} {[%emt
00:01:26]} 12. Nd5 {[%clk 01:00:57]} {[%emt 00:09:51]} Nb8 {[%clk 00:47:20]}
{[%emt 00:17:50]} 13. Nxe7 {[%clk 00:54:41]} {[%emt 00:06:47]} Qxe7 {[%clk
00:47:42]} {[%emt 00:00:07]} 14. Nc3 {[%clk 00:54:18]} {[%emt 00:00:53]} Be6
{[%clk 00:44:40]} {[%emt 00:03:31]} 15. Be1 {[%clk 00:44:22]} {[%emt 00:10:26]}
Nbd7 {[%clk 00:40:48]} {[%emt 00:04:22]} 16. Bh4 {[%clk 00:38:56]} {[%emt
00:05:56]} Qe8 {[%clk 00:30:28]} {[%emt 00:10:50]} 17. Rad1 {[%clk 00:30:20]}
{[%emt 00:09:06]} c6 {[%clk 00:26:26]} {[%emt 00:04:32]} 18. d5 {[%clk
00:21:06]} {[%emt 00:09:45]} Bg8 {[%clk 00:21:10]} {[%emt 00:05:46]} 19. dxc6
{[%clk 00:19:43]} {[%emt 00:01:53]} bxc6 {[%clk 00:21:31]} {[%emt 00:00:09]} 20.
e4 {[%clk 00:16:03]} {[%emt 00:04:10]} f4 {[%clk 00:16:13]} {[%emt 00:05:49]}
21. Be2 {[%clk 00:16:25]} {[%emt 00:00:07]} Qe6 {[%clk 00:15:45]} {[%emt
00:00:58]} 22. Qd2 {[%clk 00:13:02]} {[%emt 00:03:54]} Ne8 {[%clk 00:12:41]}
{[%emt 00:03:33]} 23. Na4 {[%clk 00:10:23]} {[%emt 00:03:09]} h6 {[%clk
00:11:37]} {[%emt 00:01:34]} 24. Bf2 {[%clk 00:09:32]} {[%emt 00:01:20]} Rf7
{[%clk 00:09:18]} {[%emt 00:02:50]} 25. Qc3 {[%clk 00:07:04]} {[%emt 00:02:58]}
c5 {[%clk 00:09:09]} {[%emt 00:00:38]} 26. Qd3 {[%clk 00:05:19]} {[%emt
00:02:16]} Nb8 {[%clk 00:06:12]} {[%emt 00:03:27]} 27. Qd5 {[%clk 00:04:40]}
{[%emt 00:01:09]} Qxd5 {[%clk 00:06:32]} {[%emt 00:00:10]} 28. cxd5 {[%clk
00:04:36]} {[%emt 00:00:34]} Rb7 {[%clk 00:06:50]} {[%emt 00:00:12]} 29. Rd2
{[%clk 00:03:12]} {[%emt 00:01:55]} Bf7 {[%clk 00:07:06]} {[%emt 00:00:13]} 30.
g3 {[%clk 00:02:44]} {[%emt 00:00:58]} g5 {[%clk 00:07:18]} {[%emt 00:00:18]}
31. Bc4 {[%clk 00:01:58]} {[%emt 00:01:16]} Nd7 {[%clk 00:06:37]} {[%emt
00:01:11]} 32. Nc3 {[%clk 00:01:20]} {[%emt 00:01:08]} Nc7 {[%clk 00:06:50]}
{[%emt 00:00:16]} 33. Kg2 {[%clk 00:01:19]} {[%emt 00:00:33]} Rab8 {[%clk
00:06:32]} {[%emt 00:00:47]} 34. Rb1 {[%clk 00:01:37]} {[%emt 00:00:11]} Be8
{[%clk 00:06:36]} {[%emt 00:00:27]} 35. Be1 {[%clk 00:01:29]} {[%emt 00:00:38]}
Nb6 {[%clk 00:06:37]} {[%emt 00:00:29]} 36. Be2 {[%clk 00:01:12]} {[%emt
00:00:47]} Na4 {[%clk 00:06:02]} {[%emt 00:01:05]} 37. Nxa4 {[%clk 00:01:09]}
{[%emt 00:00:34]} Bxa4 {[%clk 00:06:21]} {[%emt 00:00:09]} 38. Bc4 {[%clk
00:01:03]} {[%emt 00:00:36]} Bb3 {[%clk 00:03:22]} {[%emt 00:03:29]} 39. Bf1
{[%clk 00:00:50]} {[%emt 00:00:44]} a4 {[%clk 00:03:33]} {[%emt 00:00:19]} 40.
Rf2 {[%clk 00:00:55]} {[%emt 00:00:25]} Kf6 {[%clk 00:03:24]} {[%emt 00:00:39]}
41. Bc3 {[%clk 00:28:35]} {[%emt 00:02:50]} Nb5 {[%emt 00:03:14]} 1/2-1/2

[Event "Masterklassen 2025"]
[Site "Uppsala, Sweden"]
[Date "2025.06.28"]
[Round "1.3"]
[White "Jonsson, Jacob"]
[Black "Tornberg, Carlos"]
[Result "1-0"]
[TimeControl "90 min for 40 move + 30 min with an increment of 30 sec starting move 1"]
[WhiteFideId "1726315"]
[BlackFideId "1733478"]
[WhiteElo "2112"]
[BlackElo "2233"]

1. d4 {[%clk 01:30:58]} {[%emt 00:00:02]} Nf6 {[%clk 01:30:57]} {[%emt
00:00:04]} 2. c4 {[%clk 01:31:24]} {[%emt 00:00:04]} e6 {[%clk 01:31:23]}
{[%emt 00:00:03]} 3. Bf4 {[%clk 01:31:51]} {[%emt 00:00:03]} c5 {[%clk
01:31:06]} {[%emt 00:00:47]} 4. d5 {[%clk 01:32:17]} {[%emt 00:00:05]} exd5
{[%clk 01:31:27]} {[%emt 00:00:09]} 5. cxd5 {[%clk 01:32:41]} {[%emt 00:00:05]}
d6 {[%clk 01:31:54]} {[%emt 00:00:03]} 6. Nc3 {[%clk 01:33:04]} {[%emt
00:00:07]} g6 {[%clk 01:32:19]} {[%emt 00:00:05]} 7. h3 {[%clk 01:33:13]}
{[%emt 00:00:22]} Bg7 {[%clk 01:32:22]} {[%emt 00:00:25]} 8. Nf3 {[%clk
01:33:10]} {[%emt 00:00:34]} O-O {[%clk 01:32:46]} {[%emt 00:00:07]} 9. e3
{[%clk 01:33:10]} {[%emt 00:00:29]} Na6 {[%clk 01:30:14]} {[%emt 00:03:01]} 10.
Nd2 {[%clk 01:29:06]} {[%emt 00:04:35]} Re8 {[%clk 01:18:54]} {[%emt 00:11:50]}
11. Bb5 {[%clk 01:23:36]} {[%emt 00:06:00]} Bd7 {[%clk 01:13:18]} {[%emt
00:06:06]} 12. Bxa6 {[%clk 01:01:01]} {[%emt 00:23:05]} bxa6 {[%clk 01:12:30]}
{[%emt 00:01:19]} 13. Nc4 {[%clk 01:01:21]} {[%emt 00:00:09]} Ne4 {[%clk
01:07:22]} {[%emt 00:05:37]} 14. Nxe4 {[%clk 00:55:13]} {[%emt 00:06:39]} Rxe4
{[%clk 01:07:42]} {[%emt 00:00:10]} 15. Rc1 {[%clk 00:55:32]} {[%emt 00:00:11]}
Rxc4 {[%clk 00:50:48]} {[%emt 00:17:24]} 16. Rxc4 {[%clk 00:55:54]} {[%emt
00:00:08]} Qa5+ {[%clk 00:47:09]} {[%emt 00:04:09]} 17. Qd2 {[%clk 00:51:58]}
{[%emt 00:04:26]} Qxa2 {[%clk 00:46:16]} {[%emt 00:01:23]} 18. Rc1 {[%clk
00:46:53]} {[%emt 00:05:35]} Rb8 {[%clk 00:39:21]} {[%emt 00:07:24]} 19. O-O
{[%clk 00:42:16]} {[%emt 00:05:08]} Rxb2 {[%clk 00:38:27]} {[%emt 00:01:25]} 20.
Qd1 {[%clk 00:42:34]} {[%emt 00:00:11]} Rd2 {[%clk 00:37:42]} {[%emt 00:01:14]}
21. Qf3 {[%clk 00:39:45]} {[%emt 00:03:20]} Rxd5 {[%clk 00:19:56]} {[%emt
00:18:15]} 22. Rfd1 {[%clk 00:35:55]} {[%emt 00:04:20]} Bc6 {[%clk 00:19:16]}
{[%emt 00:01:11]} 23. Rxd5 {[%clk 00:35:08]} {[%emt 00:01:17]} Bxd5 {[%clk
00:19:21]} {[%emt 00:00:25]} 24. e4 {[%clk 00:34:46]} {[%emt 00:00:52]} Be6
{[%clk 00:14:14]} {[%emt 00:05:38]} 25. Bxd6 {[%clk 00:34:57]} {[%emt
00:00:19]} c4 {[%clk 00:13:59]} {[%emt 00:00:45]} 26. e5 {[%clk 00:35:16]}
{[%emt 00:00:10]} h5 {[%emt 00:00:55]} 27. g4 {[%emt 00:05:52]} hxg4 {[%clk
00:12:09]} {[%emt 00:01:38]} 28. hxg4 {[%clk 00:30:31]} {[%emt 00:00:10]} Qa5
{[%clk 00:11:58]} {[%emt 00:00:41]} 29. Qe3 {[%clk 00:29:04]} {[%emt 00:01:56]}
Qd8 {[%clk 00:08:57]} {[%emt 00:03:32]} 30. g5 {[%clk 00:22:37]} Qd7 {[%clk
00:08:57]} 31. Rb1 {[%clk 00:22:37]} Bg4 {[%clk 00:08:57]} 32. Rb8+ {[%clk
00:22:37]} Kh7 {[%clk 00:08:57]} 33. Ra8 {[%clk 00:22:37]} Qf5 {[%clk
00:08:57]} 34. f4 {[%clk 00:22:37]} Bh5 {[%clk 00:08:57]} 35. Rxa7 {[%clk
00:22:37]} Qb1+ {[%clk 00:01:13]} {[%emt 00:30:26]} 36. Kg2 {[%clk 00:11:33]}
Qb2+ {[%emt 00:02:31]} 37. Kg3 Qb5 {[%clk 00:00:39]} {[%emt 00:00:32]} 38. Rxf7
{[%clk 00:10:57]} Kg8 {[%clk 00:01:01]} {[%emt 00:01:33]} 39. Rc7 {[%clk
00:10:42]} Qd5 {[%clk 00:01:30]} {[%emt 00:00:48]} 40. Rc5 {[%clk 00:09:35]}
Qe6 {[%clk 00:01:58]} {[%emt 00:01:38]} 41. Kf2 {[%clk 00:08:53]} Bg4 {[%clk
00:30:26]} {[%emt 00:03:13]} 42. Qd4 {[%clk 00:37:48]} Qf7 {[%clk 00:30:40]}
{[%emt 00:01:52]} 43. Rc7 {[%clk 00:37:37]} Qe8 {[%clk 00:30:39]} {[%emt
00:01:12]} 44. Qxc4+ {[%clk 00:37:43]} Be6 {[%clk 00:31:02]} {[%emt 00:00:30]}
45. Qxa6 {[%clk 00:37:58]} 1-0

[Event "Masterklassen 2025"]
[Site "Uppsala, Sweden"]
[Date "2025.06.28"]
[Round "1.4"]
[White "Mardell, Jimmy"]
[Black "Nygren, David"]
[Result "0-1"]
[TimeControl "90 min for 40 move + 30 min with an increment of 30 sec starting move 1"]
[WhiteFideId "1705610"]
[BlackFideId "1704761"]
[WhiteElo "2227"]
[BlackElo "2094"]

1. e4 {[%clk 01:30:54]} {[%emt 00:00:05]} c5 {[%clk 01:30:40]} {[%emt
00:00:20]} 2. Nf3 {[%clk 01:31:18]} {[%emt 00:00:06]} Nc6 {[%clk 01:31:04]}
{[%emt 00:00:06]} 3. d4 {[%clk 01:31:36]} {[%emt 00:00:13]} cxd4 {[%clk
01:31:25]} {[%emt 00:00:08]} 4. Nxd4 {[%clk 01:32:01]} {[%emt 00:00:05]} e5
{[%clk 01:31:46]} {[%emt 00:00:10]} 5. Nb5 {[%clk 01:32:01]} {[%emt 00:00:30]}
d6 {[%clk 01:31:59]} {[%emt 00:00:17]} 6. N1c3 {[%clk 01:32:12]} {[%emt
00:00:18]} a6 {[%clk 01:31:57]} {[%emt 00:00:33]} 7. Na3 {[%clk 01:32:34]}
{[%emt 00:00:08]} Be7 {[%clk 01:31:30]} {[%emt 00:00:56]} 8. Nc4 {[%clk
01:31:13]} {[%emt 00:01:51]} Be6 {[%clk 01:26:12]} {[%emt 00:05:48]} 9. Ne3
{[%clk 01:26:26]} {[%emt 00:05:17]} Rc8 {[%clk 01:22:16]} {[%emt 00:04:26]} 10.
Bd3 {[%clk 01:24:33]} {[%emt 00:02:23]} Nf6 {[%clk 01:19:20]} {[%emt 00:03:26]}
11. O-O {[%clk 01:04:51]} {[%emt 00:20:12]} O-O {[%clk 01:06:49]} {[%emt
00:13:02]} 12. a3 {[%clk 00:58:54]} {[%emt 00:06:28]} Nd7 {[%clk 01:02:38]}
{[%emt 00:04:40]} 13. Ncd5 {[%clk 00:51:39]} {[%emt 00:07:44]} Nc5 {[%clk
00:59:04]} {[%emt 00:04:04]} 14. b4 {[%clk 00:47:17]} {[%emt 00:04:52]} Nxd3
{[%clk 00:57:28]} {[%emt 00:02:07]} 15. Qxd3 {[%clk 00:47:42]} {[%emt
00:00:04]} Bg5 {[%clk 00:52:46]} {[%emt 00:05:11]} 16. Nc4 {[%clk 00:41:54]}
{[%emt 00:06:19]} Bxc1 {[%clk 00:50:01]} {[%emt 00:03:15]} 17. Raxc1 {[%clk
00:42:13]} {[%emt 00:00:11]} Bxd5 {[%clk 00:43:41]} {[%emt 00:06:51]} 18. exd5
{[%clk 00:41:07]} {[%emt 00:01:36]} Ne7 {[%clk 00:42:40]} {[%emt 00:01:30]} 19.
Na5 {[%clk 00:39:32]} {[%emt 00:02:05]} Ng6 {[%clk 00:39:56]} {[%emt 00:03:14]}
20. g3 {[%clk 00:32:30]} {[%emt 00:07:32]} Qd7 {[%clk 00:33:20]} {[%emt
00:07:05]} 21. c4 {[%clk 00:29:56]} {[%emt 00:03:05]} f5 {[%clk 00:30:06]}
{[%emt 00:03:44]} 22. f4 {[%clk 00:27:12]} {[%emt 00:03:13]} Rce8 {[%clk
00:26:31]} {[%emt 00:04:05]} 23. c5 {[%clk 00:22:36]} {[%emt 00:05:08]} exf4
{[%clk 00:26:03]} {[%emt 00:00:58]} 24. c6 {[%clk 00:21:22]} {[%emt 00:01:43]}
bxc6 {[%clk 00:25:09]} {[%emt 00:01:24]} 25. dxc6 {[%clk 00:20:34]} {[%emt
00:01:19]} Qa7+ {[%clk 00:24:26]} {[%emt 00:01:12]} 26. Kh1 {[%clk 00:20:46]}
{[%emt 00:00:17]} fxg3 {[%clk 00:23:12]} {[%emt 00:01:45]} 27. hxg3 {[%clk
00:19:11]} {[%emt 00:02:05]} Qf7 {[%clk 00:17:34]} {[%emt 00:06:08]} 28. Nc4
{[%clk 00:14:48]} {[%emt 00:04:54]} Qe6 {[%clk 00:12:00]} {[%emt 00:06:03]} 29.
Rce1 {[%clk 00:11:05]} {[%emt 00:04:13]} Ne5 {[%clk 00:10:33]} {[%emt
00:01:58]} 30. Nxe5 {[%clk 00:09:53]} {[%emt 00:01:42]} dxe5 {[%clk 00:10:40]}
{[%emt 00:00:22]} 31. Rc1 {[%clk 00:07:42]} {[%emt 00:02:42]} Qh6+ {[%clk
00:09:11]} {[%emt 00:01:59]} 32. Kg2 {[%clk 00:05:19]} {[%emt 00:02:51]} e4
{[%clk 00:04:53]} {[%emt 00:04:50]} 33. Qc4+ {[%clk 00:03:06]} {[%emt
00:02:42]} Kh8 {[%clk 00:05:16]} {[%emt 00:00:07]} 34. c7 {[%clk 00:03:08]}
{[%emt 00:00:29]} Rc8 {[%clk 00:03:50]} {[%emt 00:01:56]} 35. Qc5 {[%clk
00:02:35]} {[%emt 00:01:03]} Qf6 {[%clk 00:01:48]} {[%emt 00:02:32]} 36. Rc2
{[%clk 00:01:12]} {[%emt 00:01:53]} h6 {[%clk 00:02:09]} {[%emt 00:00:09]} 37.
Rd1 {[%clk 00:00:58]} {[%emt 00:00:43]} f4 {[%clk 00:02:29]} {[%emt 00:00:10]}
38. Qd6 {[%clk 00:00:43]} {[%emt 00:00:45]} f3+ {[%clk 00:02:17]} {[%emt
00:00:42]} 39. Kf2 {[%clk 00:00:45]} {[%emt 00:00:29]} e3+ {[%clk 00:01:45]}
{[%emt 00:01:02]} 40. Kxe3 {[%clk 00:00:41]} {[%emt 00:00:34]} Rce8+ {[%clk
00:01:26]} {[%emt 00:00:49]} 41. Kf2 {[%clk 00:00:59]} {[%emt 00:00:12]} Re2+
{[%clk 00:01:19]} {[%emt 00:00:35]} 42. Rxe2 {[%clk 00:25:36]} {[%emt
00:05:54]} fxe2+ {[%clk 00:31:31]} {[%emt 00:00:18]} 43. Qxf6 {[%clk 00:25:24]}
{[%emt 00:00:42]} exd1=N+ {[%clk 00:31:38]} {[%emt 00:00:23]} 0-1

[Event "Masterklassen 2025"]
[Site "Uppsala, Sweden"]
[Date "2025.06.28"]
[Round "1.5"]
[White "Soppela, Toni"]
[Black "Eklund, Joel"]
[Result "1/2-1/2"]
[TimeControl "90 min for 40 move + 30 min with an increment of 30 sec starting move 1"]
[WhiteFideId "1766163"]
[BlackFideId "1705288"]
[WhiteElo "2090"]
[BlackElo "2194"]

1. d4 {[%clk 01:30:06]} {[%emt 00:00:50]} Nf6 {[%clk 01:30:51]} {[%emt
00:00:12]} 2. c4 {[%clk 01:30:11]} {[%emt 00:00:24]} e6 {[%clk 01:31:14]}
{[%emt 00:00:08]} 3. Nc3 {[%clk 01:29:47]} {[%emt 00:00:54]} d5 {[%clk
01:31:27]} {[%emt 00:00:17]} 4. cxd5 {[%clk 01:29:18]} {[%emt 00:00:59]} exd5
{[%clk 01:31:48]} {[%emt 00:00:09]} 5. Bg5 {[%clk 01:29:35]} {[%emt 00:00:12]}
c6 {[%clk 01:32:04]} {[%emt 00:00:15]} 6. Qc2 {[%clk 01:29:23]} {[%emt
00:00:41]} Be7 {[%clk 01:32:18]} {[%emt 00:00:16]} 7. e3 {[%clk 01:29:31]}
{[%emt 00:00:23]} Nbd7 {[%clk 01:32:31]} {[%emt 00:00:17]} 8. Bd3 {[%clk
01:29:32]} {[%emt 00:00:29]} h6 {[%clk 01:32:41]} {[%emt 00:00:20]} 9. Bh4
{[%clk 01:29:54]} {[%emt 00:00:08]} Nh5 {[%clk 01:32:48]} {[%emt 00:00:23]} 10.
Bxe7 {[%clk 01:29:25]} {[%emt 00:00:59]} Qxe7 {[%clk 01:33:11]} {[%emt
00:00:07]} 11. Nge2 {[%clk 01:29:09]} {[%emt 00:00:44]} Nb6 {[%clk 01:32:48]}
{[%emt 00:00:56]} 12. O-O {[%clk 01:23:07]} {[%emt 00:06:29]} O-O {[%clk
01:32:58]} {[%emt 00:00:21]} 13. Rfe1 {[%clk 01:16:33]} {[%emt 00:07:03]} Bd7
{[%clk 01:30:27]} {[%emt 00:03:03]} 14. a3 {[%clk 01:08:56]} {[%emt 00:08:07]}
a5 {[%clk 01:23:04]} {[%emt 00:07:53]} 15. b4 {[%clk 01:02:14]} {[%emt
00:07:12]} axb4 {[%clk 01:09:06]} {[%emt 00:14:28]} 16. axb4 {[%clk 01:02:28]}
{[%emt 00:00:16]} Qxb4 {[%clk 01:08:52]} {[%emt 00:00:44]} 17. Rxa8 {[%clk
00:55:13]} {[%emt 00:07:45]} Rxa8 {[%clk 01:08:08]} {[%emt 00:01:15]} 18. Rb1
{[%clk 00:55:24]} {[%emt 00:00:16]} Qa5 {[%clk 01:08:28]} {[%emt 00:00:12]} 19.
Qb3 {[%clk 00:55:23]} {[%emt 00:00:30]} Nc8 {[%clk 01:06:56]} {[%emt 00:02:03]}
20. Qxb7 {[%clk 00:54:25]} {[%emt 00:01:28]} Nf6 {[%clk 01:06:14]} {[%emt
00:01:11]} 21. h3 {[%clk 00:49:43]} {[%emt 00:05:12]} Nd6 {[%clk 01:04:14]}
{[%emt 00:02:31]} 22. Qb4 {[%clk 00:47:34]} {[%emt 00:02:38]} Qxb4 {[%clk
00:56:21]} {[%emt 00:08:25]} 23. Rxb4 {[%clk 00:48:00]} {[%emt 00:00:03]} Kf8
{[%clk 00:56:30]} {[%emt 00:00:21]} 24. f3 {[%clk 00:42:14]} {[%emt 00:06:16]}
Ra3 {[%clk 00:52:49]} {[%emt 00:04:11]} 25. Kf2 {[%clk 00:39:15]} {[%emt
00:03:28]} Ke7 {[%clk 00:52:04]} {[%emt 00:01:16]} 26. e4 {[%clk 00:35:36]}
{[%emt 00:04:08]} dxe4 {[%clk 00:48:06]} {[%emt 00:04:28]} 27. fxe4 {[%clk
00:35:50]} {[%emt 00:00:16]} Nfe8 {[%clk 00:47:18]} {[%emt 00:01:19]} 28. Ra4
{[%clk 00:30:52]} {[%emt 00:05:27]} Rxa4 {[%clk 00:44:18]} {[%emt 00:03:31]} 29.
Nxa4 {[%clk 00:31:19]} {[%emt 00:00:02]} Nc7 {[%clk 00:40:56]} {[%emt
00:03:53]} 30. Nc5 {[%clk 00:27:31]} {[%emt 00:04:17]} Ne6 {[%clk 00:38:12]}
{[%emt 00:03:15]} 31. Nxd7 {[%clk 00:19:43]} {[%emt 00:08:19]} Kxd7 {[%clk
00:38:31]} {[%emt 00:00:10]} 32. Ke3 {[%clk 00:20:01]} {[%emt 00:00:12]}
1/2-1/2

[Event "Masterklassen 2025"]
[Site "Uppsala, Sweden"]
[Date "2025.06.28"]
[Round "1.6"]
[White "Lundberg, David"]
[Black "Kingsley, Elias"]
[Result "0-1"]
[TimeControl "90 min for 40 move + 30 min with an increment of 30 sec starting move 1"]
[WhiteFideId "1707051"]
[BlackFideId "1775006"]
[WhiteElo "2193"]
[BlackElo "2072"]

1. e4 {[%clk 01:30:51]} {[%emt 00:00:08]} c5 {[%clk 01:30:52]} {[%emt
00:00:09]} 2. Nf3 {[%clk 01:31:03]} {[%emt 00:00:17]} e6 {[%clk 01:31:15]}
{[%emt 00:00:08]} 3. d4 {[%clk 01:31:17]} {[%emt 00:00:15]} cxd4 {[%clk
01:31:29]} {[%emt 00:00:16]} 4. Nxd4 {[%clk 01:31:44]} {[%emt 00:00:03]} Nf6
{[%clk 01:25:46]} {[%emt 00:06:13]} 5. Nc3 {[%clk 01:31:49]} {[%emt 00:00:25]}
Nc6 {[%clk 01:26:11]} {[%emt 00:00:05]} 6. Nxc6 {[%clk 01:31:34]} {[%emt
00:00:45]} bxc6 {[%clk 01:26:36]} {[%emt 00:00:06]} 7. e5 {[%clk 01:31:55]}
{[%emt 00:00:09]} Nd5 {[%clk 01:27:02]} {[%emt 00:00:03]} 8. Ne4 {[%clk
01:31:49]} {[%emt 00:00:35]} Qc7 {[%clk 01:27:24]} {[%emt 00:00:09]} 9. f4
{[%clk 01:31:17]} {[%emt 00:01:02]} f5 {[%clk 01:27:48]} {[%emt 00:00:06]} 10.
exf6 {[%clk 01:08:26]} {[%emt 00:23:22]} gxf6 {[%clk 01:28:12]} {[%emt
00:00:05]} 11. c4 {[%clk 01:03:49]} {[%emt 00:05:08]} Bb4+ {[%clk 01:28:24]}
{[%emt 00:00:18]} 12. Kf2 {[%clk 01:03:28]} {[%emt 00:00:50]} Nxf4 {[%clk
01:18:25]} {[%emt 00:10:29]} 13. Qg4 {[%clk 00:50:36]} {[%emt 00:13:21]} Ng6
{[%clk 01:04:14]} {[%emt 00:14:40]} 14. Nxf6+ {[%clk 00:48:42]} {[%emt
00:02:26]} Kd8 {[%clk 01:04:30]} {[%emt 00:00:14]} 15. Nxh7 {[%clk 00:42:26]}
{[%emt 00:06:46]} Bc5+ {[%clk 00:43:24]} {[%emt 00:21:35]} 16. Ke1 {[%clk
00:36:36]} {[%emt 00:06:20]} Qe5+ {[%clk 00:40:21]} {[%emt 00:03:33]} 17. Kd1
{[%clk 00:35:58]} {[%emt 00:01:09]} Rxh7 {[%clk 00:36:14]} {[%emt 00:04:36]} 18.
Qxg6 {[%clk 00:35:58]} {[%emt 00:00:31]} Rg7 {[%clk 00:36:16]} {[%emt
00:00:28]} 19. Qh6 {[%clk 00:24:28]} {[%emt 00:12:00]} Rg4 {[%clk 00:34:33]}
{[%emt 00:02:13]} 20. Qh7 {[%clk 00:15:33]} {[%emt 00:09:25]} Ba6 {[%clk
00:32:53]} {[%emt 00:02:10]} 21. Qc2 {[%clk 00:07:25]} {[%emt 00:08:37]} Rd4+
{[%clk 00:29:11]} {[%emt 00:04:12]} 22. Bd2 {[%clk 00:03:42]} {[%emt 00:04:13]}
Bb4 {[%clk 00:29:04]} {[%emt 00:00:38]} 23. Bd3 {[%clk 00:04:09]} {[%emt
00:00:02]} Bxd2 {[%clk 00:28:57]} {[%emt 00:00:38]} 24. Kxd2 {[%clk 00:02:04]}
{[%emt 00:02:36]} Bxc4 {[%clk 00:28:01]} {[%emt 00:01:25]} 25. Qxc4 {[%clk
00:02:15]} {[%emt 00:00:19]} Rxc4 {[%clk 00:27:42]} {[%emt 00:00:49]} 26. Bxc4
{[%clk 00:02:43]} {[%emt 00:00:02]} Qxb2+ {[%clk 00:27:15]} {[%emt 00:00:57]}
0-1